[Event "December 12 Early 2023"]
[Site "https://www.chess.com"]
[Date "2023.12.12"]
[Round "1"]
[White "Kononenko, Dmitry"]
[Black "Hartikainen, Jarmo"]
[Result "1-0"]
[Board "215"]
[TimeControl "180+1"]
[WhiteFideId "14113538"]
[BlackFideId "503134"]
[WhiteElo "2548"]
[BlackElo "2119"]
[WhiteTeam "UKR"]
[BlackTeam "FIN"]
[WhiteClock "0:00:22"]
[BlackClock "0:00:00"]

1. e4 {[%clk 0:02:58]}  c5 {[%clk 0:02:59]} 2. Nf3 {[%clk 0:02:57]}  Nc6 {[%clk 0:02:50]} 3. d4 {[%clk 0:02:58]}  cxd4 {[%clk 0:02:49]} 4. Nxd4 {[%clk 0:02:59]}  Nf6 {[%clk 0:02:49]} 5. Nc3 {[%clk 0:02:59]}  d6 {[%clk 0:02:49]} 6. Bc4 {[%clk 0:02:58]}  e6 {[%clk 0:02:49]} 7. Bb3 {[%clk 0:02:59]}  a6 {[%clk 0:02:48]} 8. O-O {[%clk 0:02:59]}  Bd7 {[%clk 0:02:47]} 9. f4 {[%clk 0:02:59]}  Qc7 {[%clk 0:02:46]} 10. Kh1 {[%clk 0:02:55]}  Be7 {[%clk 0:02:40]} 11. f5 {[%clk 0:02:53]}  Nxd4 {[%clk 0:02:31]} 12. Qxd4 {[%clk 0:02:52]}  Qc5 {[%clk 0:02:31]} 13. Qd3 {[%clk 0:02:47]}  O-O {[%clk 0:02:16]} 14. Qh3 {[%clk 0:02:39]}  exf5 {[%clk 0:02:06]} 15. exf5 {[%clk 0:02:34]}  Bc6 {[%clk 0:01:58]} 16. Be3 {[%clk 0:02:33]}  Qa5 {[%clk 0:01:39]} 17. Bd4 {[%clk 0:02:23]}  b5 {[%clk 0:01:20]} 18. Rae1 {[%clk 0:02:22]}  Qc7 {[%clk 0:01:16]} 19. Bxf6 {[%clk 0:02:08]}  Bxf6 {[%clk 0:01:15]} 20. Nd5 {[%clk 0:02:07]}  Bxd5 {[%clk 0:01:15]} 21. Bxd5 {[%clk 0:02:08]}  Rae8 {[%clk 0:01:14]} 22. c3 {[%clk 0:02:04]}  Rxe1 {[%clk 0:01:11]} 23. Rxe1 {[%clk 0:02:04]}  Qd7 {[%clk 0:01:12]} 24. Qf3 {[%clk 0:01:55]}  Re8 {[%clk 0:01:09]} 25. Rd1 {[%clk 0:01:55]}  Re5 {[%clk 0:01:03]} 26. g4 {[%clk 0:01:43]}  Qe8 {[%clk 0:00:57]} 27. Rd2 {[%clk 0:01:35]}  h6 {[%clk 0:00:34]} 28. Kg2 {[%clk 0:01:26]}  Re3 {[%clk 0:00:28]} 29. Qf2 {[%clk 0:01:20]}  Bg5 {[%clk 0:00:24]} 30. Bf3 {[%clk 0:01:10]}  Qe7 {[%clk 0:00:22]} 31. Re2 {[%clk 0:01:00]}  Rxe2 {[%clk 0:00:20]} 32. Qxe2 {[%clk 0:01:01]}  Qxe2+ {[%clk 0:00:19]} 33. Bxe2 {[%clk 0:01:02]}  Bc1 {[%clk 0:00:19]} 34. b3 {[%clk 0:01:01]}  Bd2 {[%clk 0:00:18]} 35. c4 {[%clk 0:01:01]}  bxc4 {[%clk 0:00:18]} 36. Bxc4 {[%clk 0:01:01]}  a5 {[%clk 0:00:18]} 37. Kf3 {[%clk 0:01:02]}  Kf8 {[%clk 0:00:17]} 38. Ke4 {[%clk 0:01:02]}  Ke7 {[%clk 0:00:15]} 39. Kd5 {[%clk 0:01:02]}  Kd7 {[%clk 0:00:10]} 40. Bb5+ {[%clk 0:01:00]}  Kc7 {[%clk 0:00:10]} 41. Be8 {[%clk 0:01:00]}  f6 {[%clk 0:00:07]} 42. Ke6 {[%clk 0:01:01]}  Bf4 {[%clk 0:00:06]} 43. h3 {[%clk 0:01:00]}  Bg5 {[%clk 0:00:06]} 44. Kf7 {[%clk 0:01:00]}  Kb6 {[%clk 0:00:07]} 45. Kxg7 {[%clk 0:00:59]}  d5 {[%clk 0:00:07]} 46. Bf7 {[%clk 0:00:58]}  Kc5 {[%clk 0:00:05]} 47. Kg6 {[%clk 0:00:56]}  Kd4 {[%clk 0:00:05]} 48. Kh5 {[%clk 0:00:56]}  Ke4 {[%clk 0:00:03]} 49. h4 {[%clk 0:00:57]}  Bc1 {[%clk 0:00:02]} 50. Kg6 {[%clk 0:00:55]}  d4 {[%clk 0:00:02]} 51. Bc4 {[%clk 0:00:49]}  Bb2 {[%clk 0:00:01]} 52. Kxh6 {[%clk 0:00:42]}  d3 {[%clk 0:00:02]} 53. Kg6 {[%clk 0:00:22]}  Ke3 {[%clk 0:00:02]} 54. Bxd3 {[%clk 0:00:20]}  Kxd3 {[%clk 0:00:02]} 55. h5 {[%clk 0:00:20]}  Ke4 {[%clk 0:00:01]} 56. h6 {[%clk 0:00:20]}  Kf4 {[%clk 0:00:01]} 57. h7 {[%clk 0:00:21]}  Kxg4 {[%clk 0:00:02]} 58. h8=Q {[%clk 0:00:21]}  Kf4 {[%clk 0:00:02]} 59. Qh4+ {[%clk 0:00:21]}  Ke5 {[%clk 0:00:02]} 60. Qe1+ {[%clk 0:00:21]}  Kd4 {[%clk 0:00:02]} 61. Qd2+ {[%clk 0:00:21]}  Ke4 {[%clk 0:00:01]} 62. Qxb2 {[%clk 0:00:22]}  Kd3 {[%clk 0:00:00]} 63. Kxf6 {[%clk 0:00:22]} 1-0

[Event "December 12 Early 2023"]
[Site "https://www.chess.com"]
[Date "2023.12.12"]
[Round "1"]
[White "Negron Lizarazo, Juan Sebastian"]
[Black "Santos Flores, Alberto"]
[Result "0-1"]
[Board "216"]
[TimeControl "180+1"]
[WhiteFideId "3936910"]
[BlackFideId "3601234"]
[WhiteElo "2116"]
[BlackElo "2548"]
[WhiteTeam "COL"]
[BlackTeam "ECU"]
[WhiteClock "0:00:10"]
[BlackClock "0:00:38"]

1. e4 {[%clk 0:03:00]}  e6 {[%clk 0:02:57]} 2. d4 {[%clk 0:02:59]}  d5 {[%clk 0:02:57]} 3. e5 {[%clk 0:03:00]}  c5 {[%clk 0:02:57]} 4. c3 {[%clk 0:03:00]}  Qb6 {[%clk 0:02:58]} 5. Nf3 {[%clk 0:02:57]}  Nc6 {[%clk 0:02:58]} 6. a3 {[%clk 0:02:57]}  a5 {[%clk 0:02:58]} 7. Bd3 {[%clk 0:02:49]}  Bd7 {[%clk 0:02:58]} 8. Bc2 {[%clk 0:02:49]}  a4 {[%clk 0:02:58]} 9. O-O {[%clk 0:02:26]}  Nh6 {[%clk 0:02:58]} 10. h3 {[%clk 0:02:05]}  Nf5 {[%clk 0:02:52]} 11. g4 {[%clk 0:02:03]}  Nfe7 {[%clk 0:02:48]} 12. Re1 {[%clk 0:01:51]}  Qa7 {[%clk 0:02:33]} 13. dxc5 {[%clk 0:01:41]}  Qxc5 {[%clk 0:02:32]} 14. Be3 {[%clk 0:01:41]}  Qb5 {[%clk 0:02:32]} 15. b4 {[%clk 0:01:36]}  axb3 {[%clk 0:02:31]} 16. Bxb3 {[%clk 0:01:36]}  Ng6 {[%clk 0:02:30]} 17. Bd4 {[%clk 0:01:30]}  Na5 {[%clk 0:01:59]} 18. Bc2 {[%clk 0:01:23]}  Nc4 {[%clk 0:01:58]} 19. a4 {[%clk 0:01:17]}  Qc6 {[%clk 0:01:39]} 20. Nbd2 {[%clk 0:01:15]}  Be7 {[%clk 0:01:37]} 21. Nxc4 {[%clk 0:01:15]}  Qxc4 {[%clk 0:01:36]} 22. Bd3 {[%clk 0:01:09]}  Qc7 {[%clk 0:01:35]} 23. Qb3 {[%clk 0:01:06]}  O-O {[%clk 0:01:34]} 24. Reb1 {[%clk 0:01:02]}  Bc6 {[%clk 0:01:32]} 25. Bb5 {[%clk 0:01:00]}  f6 {[%clk 0:01:26]} 26. exf6 {[%clk 0:00:58]}  Bxf6 {[%clk 0:01:26]} 27. Bxf6 {[%clk 0:00:55]}  Rxf6 {[%clk 0:01:25]} 28. Bxc6 {[%clk 0:00:46]}  bxc6 {[%clk 0:01:25]} 29. Qd1 {[%clk 0:00:40]}  Raf8 {[%clk 0:01:24]} 30. a5 {[%clk 0:00:27]}  Rxf3 {[%clk 0:01:23]} 31. Qe2 {[%clk 0:00:17]}  Rxh3 {[%clk 0:00:54]} 32. f3 {[%clk 0:00:14]}  Rhxf3 {[%clk 0:00:47]} 33. Qe1 {[%clk 0:00:15]}  Qf4 {[%clk 0:00:38]} 34. a6 {[%clk 0:00:10]}  Qxg4+ {[%clk 0:00:38]} 0-1

[Event "December 12 Early 2023"]
[Site "https://www.chess.com"]
[Date "2023.12.12"]
[Round "1"]
[White "Luxama, Jacques Muller"]
[Black "Karas, Marek"]
[Result "0-1"]
[Board "218"]
[TimeControl "180+1"]
[WhiteFideId "11900113"]
[BlackFideId "14928558"]
[WhiteElo "2109"]
[BlackElo "2544"]
[WhiteTeam "HAI"]
[BlackTeam "CZE"]
[WhiteClock "0:00:00"]
[BlackClock "0:00:01"]

1. e4 {[%clk 0:03:00]}  e6 {[%clk 0:02:59]} 2. d4 {[%clk 0:02:59]}  d5 {[%clk 0:02:59]} 3. Nc3 {[%clk 0:02:59]}  Nf6 {[%clk 0:02:57]} 4. e5 {[%clk 0:02:57]}  Nfd7 {[%clk 0:02:57]} 5. f4 {[%clk 0:02:58]}  c5 {[%clk 0:02:57]} 6. Nf3 {[%clk 0:02:59]}  Nc6 {[%clk 0:02:55]} 7. Be3 {[%clk 0:02:56]}  Be7 {[%clk 0:02:55]} 8. Ne2 {[%clk 0:02:48]}  O-O {[%clk 0:02:50]} 9. Qd2 {[%clk 0:02:47]}  b5 {[%clk 0:02:34]} 10. c3 {[%clk 0:02:44]}  Qb6 {[%clk 0:02:33]} 11. Ng3 {[%clk 0:02:40]}  cxd4 {[%clk 0:02:24]} 12. Nxd4 {[%clk 0:02:35]}  Nxd4 {[%clk 0:02:15]} 13. Bxd4 {[%clk 0:02:34]}  Bc5 {[%clk 0:02:08]} 14. Ne2 {[%clk 0:02:33]}  a5 {[%clk 0:02:02]} 15. Bxc5 {[%clk 0:02:31]}  Nxc5 {[%clk 0:02:01]} 16. Nd4 {[%clk 0:02:31]}  b4 {[%clk 0:01:58]} 17. Be2 {[%clk 0:02:13]}  Ne4 {[%clk 0:01:53]} 18. Qc1 {[%clk 0:01:53]}  Bd7 {[%clk 0:01:34]} 19. Bd3 {[%clk 0:01:48]}  bxc3 {[%clk 0:01:28]} 20. bxc3 {[%clk 0:01:47]}  Rac8 {[%clk 0:01:23]} 21. Bxe4 {[%clk 0:01:44]}  dxe4 {[%clk 0:01:24]} 22. Qd2 {[%clk 0:01:32]}  Rfd8 {[%clk 0:01:18]} 23. O-O {[%clk 0:01:31]}  Qc5 {[%clk 0:01:11]} 24. Rac1 {[%clk 0:01:22]}  Bb5 {[%clk 0:01:04]} 25. Rfe1 {[%clk 0:01:13]}  Bd3 {[%clk 0:01:02]} 26. Kh1 {[%clk 0:01:12]}  h6 {[%clk 0:00:52]} 27. Qe3 {[%clk 0:01:02]}  Qd5 {[%clk 0:00:48]} 28. Qg3 {[%clk 0:00:57]}  Kh8 {[%clk 0:00:33]} 29. f5 {[%clk 0:00:55]}  Rg8 {[%clk 0:00:18]} 30. f6 {[%clk 0:00:35]}  g5 {[%clk 0:00:15]} 31. h4 {[%clk 0:00:23]}  Rc5 {[%clk 0:00:11]} 32. Rcd1 {[%clk 0:00:13]}  Qxe5 {[%clk 0:00:11]} 33. Qxe5 {[%clk 0:00:13]}  Rxe5 {[%clk 0:00:10]} 34. Rxd3 {[%clk 0:00:14]}  gxh4 {[%clk 0:00:08]} 35. Rde3 {[%clk 0:00:12]}  Rg6 {[%clk 0:00:06]} 36. Rxe4 {[%clk 0:00:12]}  Reg5 {[%clk 0:00:06]} 37. R1e2 {[%clk 0:00:10]}  Rxf6 {[%clk 0:00:05]} 38. Rxh4 {[%clk 0:00:10]}  Kg7 {[%clk 0:00:05]} 39. Kh2 {[%clk 0:00:09]}  Rfg6 {[%clk 0:00:05]} 40. Kh3 {[%clk 0:00:08]}  Rc5 {[%clk 0:00:05]} 41. Rg4 {[%clk 0:00:07]}  Rxc3+ {[%clk 0:00:04]} 42. g3 {[%clk 0:00:08]}  h5 {[%clk 0:00:03]} 43. Rxg6+ {[%clk 0:00:07]}  Kxg6 {[%clk 0:00:04]} 44. Nb5 {[%clk 0:00:06]}  Rc5 {[%clk 0:00:04]} 45. Nd6 {[%clk 0:00:06]}  Rd5 {[%clk 0:00:04]} 46. Ne4 {[%clk 0:00:06]}  f5 {[%clk 0:00:03]} 47. Nf2 {[%clk 0:00:05]}  Kf6 {[%clk 0:00:03]} 48. Rc2 {[%clk 0:00:04]}  Rb5 {[%clk 0:00:02]} 49. Kg2 {[%clk 0:00:04]}  Re5 {[%clk 0:00:02]} 50. Nh3 {[%clk 0:00:03]}  Re3 {[%clk 0:00:01]} 51. Nf4 {[%clk 0:00:04]}  Kg5 {[%clk 0:00:01]} 52. Rf2 {[%clk 0:00:00]}  e5 {[%clk 0:00:01]} 0-1

[Event "December 12 Early 2023"]
[Site "https://www.chess.com"]
[Date "2023.12.12"]
[Round "1"]
[White "Davidson, Kevin"]
[Black "Tilahun , Abel Mathewos"]
[Result "0-1"]
[Board "219"]
[TimeControl "180+1"]
[WhiteFideId "2056810"]
[BlackFideId "15702391"]
[WhiteElo "2541"]
[BlackElo "2070"]
[WhiteTeam "USA"]
[BlackTeam "ETH"]
[WhiteClock "0:00:00"]
[BlackClock "0:00:04"]

1. e4 {[%clk 0:02:58]}  e6 {[%clk 0:02:58]} 2. d4 {[%clk 0:02:57]}  d5 {[%clk 0:02:58]} 3. Nc3 {[%clk 0:02:45]}  dxe4 {[%clk 0:02:57]} 4. Nxe4 {[%clk 0:02:41]}  Nd7 {[%clk 0:02:58]} 5. Bd3 {[%clk 0:02:41]}  Ngf6 {[%clk 0:02:58]} 6. Qe2 {[%clk 0:02:41]}  Be7 {[%clk 0:02:57]} 7. Nf3 {[%clk 0:02:39]}  O-O {[%clk 0:02:57]} 8. c3 {[%clk 0:02:37]}  Nxe4 {[%clk 0:02:53]} 9. Bxe4 {[%clk 0:02:38]}  Nf6 {[%clk 0:02:54]} 10. Bc2 {[%clk 0:02:37]}  b6 {[%clk 0:02:54]} 11. Be3 {[%clk 0:02:37]}  Bb7 {[%clk 0:02:53]} 12. O-O-O {[%clk 0:02:37]}  c5 {[%clk 0:02:53]} 13. dxc5 {[%clk 0:02:36]}  Qc7 {[%clk 0:02:50]} 14. cxb6 {[%clk 0:02:17]}  axb6 {[%clk 0:02:49]} 15. Kb1 {[%clk 0:02:17]}  Bd5 {[%clk 0:02:47]} 16. a3 {[%clk 0:02:07]}  Bxa3 {[%clk 0:02:35]} 17. bxa3 {[%clk 0:01:58]}  Rxa3 {[%clk 0:02:32]} 18. Bd4 {[%clk 0:01:31]}  Rfa8 {[%clk 0:02:12]} 19. Kc1 {[%clk 0:01:27]}  Rxc3 {[%clk 0:01:42]} 20. Ne1 {[%clk 0:01:01]}  Ne4 {[%clk 0:00:19]} 21. Bxc3 {[%clk 0:00:19]}  Qxc3 {[%clk 0:00:16]} 22. Qb5 {[%clk 0:00:20]}  Ra1+ {[%clk 0:00:15]} 23. Qb1 {[%clk 0:00:20]}  Rxb1+ {[%clk 0:00:14]} 24. Kxb1 {[%clk 0:00:21]}  Qb4+ {[%clk 0:00:12]} 25. Kc1 {[%clk 0:00:20]}  Nxf2 {[%clk 0:00:12]} 26. Nd3 {[%clk 0:00:18]}  Qa3+ {[%clk 0:00:09]} 27. Kd2 {[%clk 0:00:17]}  Nxh1 {[%clk 0:00:09]} 28. Rxh1 {[%clk 0:00:17]}  g6 {[%clk 0:00:08]} 29. Rb1 {[%clk 0:00:17]}  Qa5+ {[%clk 0:00:08]} 30. Ke2 {[%clk 0:00:15]}  Qc3 {[%clk 0:00:08]} 31. Kd1 {[%clk 0:00:14]}  Bxg2 {[%clk 0:00:07]} 32. Rxb6 {[%clk 0:00:12]}  Bf3+ {[%clk 0:00:06]} 33. Kc1 {[%clk 0:00:12]}  Be4 {[%clk 0:00:04]} 34. Rb8+ {[%clk 0:00:11]}  Kg7 {[%clk 0:00:04]} 35. Rb3 {[%clk 0:00:12]}  Qc6 {[%clk 0:00:04]} 36. Kb2 {[%clk 0:00:10]}  Bxd3 {[%clk 0:00:03]} 37. Rxd3 {[%clk 0:00:07]}  Qg2 {[%clk 0:00:03]} 38. Kc3 {[%clk 0:00:05]}  Qxh2 {[%clk 0:00:03]} 39. Bb3 {[%clk 0:00:04]}  Qc7+ {[%clk 0:00:04]} 40. Bc4 {[%clk 0:00:04]}  h5 {[%clk 0:00:04]} 41. Kd4 {[%clk 0:00:03]}  h4 {[%clk 0:00:04]} 42. Re3 {[%clk 0:00:03]}  g5 {[%clk 0:00:04]} 43. Bd3 {[%clk 0:00:03]}  Qf4+ {[%clk 0:00:04]} 44. Re4 {[%clk 0:00:03]}  Qf2+ {[%clk 0:00:04]} 45. Kc4 {[%clk 0:00:02]}  h3 {[%clk 0:00:05]} 46. Be2 {[%clk 0:00:01]}  h2 {[%clk 0:00:04]} 47. Rg4 {[%clk 0:00:00]}  f6 {[%clk 0:00:04]} 0-1

[Event "December 12 Early 2023"]
[Site "https://www.chess.com"]
[Date "2023.12.12"]
[Round "1"]
[White "MasterofMasters2006"]
[Black "Batsiashvili, Nino"]
[Result "1/2-1/2"]
[Board "220"]
[TimeControl "180+1"]
[BlackFideId "13602993"]
[WhiteElo "2061"]
[BlackElo "2540"]
[BlackTeam "GEO"]
[WhiteClock "0:00:49"]
[BlackClock "0:01:01"]

1. d4 {[%clk 0:02:56]}  Nf6 {[%clk 0:03:00]} 2. c4 {[%clk 0:02:57]}  c5 {[%clk 0:03:00]} 3. d5 {[%clk 0:02:57]}  b5 {[%clk 0:03:00]} 4. cxb5 {[%clk 0:02:57]}  a6 {[%clk 0:03:01]} 5. bxa6 {[%clk 0:02:58]}  e6 {[%clk 0:03:01]} 6. dxe6 {[%clk 0:02:55]}  fxe6 {[%clk 0:03:02]} 7. Nc3 {[%clk 0:02:52]}  Bxa6 {[%clk 0:03:01]} 8. Nf3 {[%clk 0:02:52]}  Nc6 {[%clk 0:03:01]} 9. e4 {[%clk 0:02:53]}  Bxf1 {[%clk 0:02:48]} 10. Kxf1 {[%clk 0:02:53]}  Be7 {[%clk 0:02:36]} 11. g3 {[%clk 0:02:40]}  O-O {[%clk 0:02:34]} 12. Kg2 {[%clk 0:02:41]}  d5 {[%clk 0:02:34]} 13. exd5 {[%clk 0:02:41]}  exd5 {[%clk 0:02:34]} 14. Bg5 {[%clk 0:02:39]}  d4 {[%clk 0:02:24]} 15. Bxf6 {[%clk 0:02:36]}  Bxf6 {[%clk 0:02:25]} 16. Ne4 {[%clk 0:02:36]}  Qd5 {[%clk 0:02:25]} 17. Re1 {[%clk 0:02:30]}  c4 {[%clk 0:02:18]} 18. b3 {[%clk 0:02:10]}  d3 {[%clk 0:02:12]} 19. bxc4 {[%clk 0:02:08]}  Qxc4 {[%clk 0:02:06]} 20. Nxf6+ {[%clk 0:02:04]}  Rxf6 {[%clk 0:02:05]} 21. Qb3 {[%clk 0:02:03]}  Qxb3 {[%clk 0:01:58]} 22. axb3 {[%clk 0:02:04]}  Rb8 {[%clk 0:01:57]} 23. Nd2 {[%clk 0:01:59]}  Nb4 {[%clk 0:01:55]} 24. Ra7 {[%clk 0:01:55]}  Rbf8 {[%clk 0:01:38]} 25. f4 {[%clk 0:01:33]}  R6f7 {[%clk 0:01:31]} 26. Ree7 {[%clk 0:01:10]}  Rxe7 {[%clk 0:01:29]} 27. Rxe7 {[%clk 0:01:11]}  Ra8 {[%clk 0:01:24]} 28. Rb7 {[%clk 0:00:52]}  Ra2 {[%clk 0:01:21]} 29. Rxb4 {[%clk 0:00:51]}  Rxd2+ {[%clk 0:01:20]} 30. Kf3 {[%clk 0:00:50]}  Rxh2 {[%clk 0:01:01]} 31. Rd4 {[%clk 0:00:49]} 1/2-1/2

[Event "December 12 Early 2023"]
[Site "https://www.chess.com"]
[Date "2023.12.12"]
[Round "1"]
[White "Matyunin, Maxim"]
[Black "Nikulina, Alena"]
[Result "1-0"]
[Board "221"]
[TimeControl "180+1"]
[WhiteFideId "34106682"]
[BlackFideId "4172051"]
[WhiteElo "2540"]
[BlackElo "2044"]
[WhiteTeam "RUS"]
[BlackTeam "RUS"]
[WhiteClock "0:00:51"]
[BlackClock "0:00:00"]

1. d4 {[%clk 0:03:00]}  d5 {[%clk 0:02:46]} 2. Nf3 {[%clk 0:02:58]}  Nf6 {[%clk 0:02:43]} 3. c4 {[%clk 0:02:57]}  dxc4 {[%clk 0:02:42]} 4. Nc3 {[%clk 0:02:57]}  e6 {[%clk 0:02:41]} 5. Bg5 {[%clk 0:02:48]}  Be7 {[%clk 0:02:36]} 6. e4 {[%clk 0:02:44]}  O-O {[%clk 0:02:27]} 7. Bxc4 {[%clk 0:02:42]}  a6 {[%clk 0:02:25]} 8. O-O {[%clk 0:02:40]}  b5 {[%clk 0:02:24]} 9. Bd3 {[%clk 0:02:33]}  Bb7 {[%clk 0:02:20]} 10. e5 {[%clk 0:02:30]}  Nd5 {[%clk 0:02:15]} 11. Bxe7 {[%clk 0:02:27]}  Qxe7 {[%clk 0:02:14]} 12. Ne4 {[%clk 0:02:20]}  Nf4 {[%clk 0:02:06]} 13. Bc2 {[%clk 0:02:16]}  Nd7 {[%clk 0:01:51]} 14. Rc1 {[%clk 0:02:01]}  f5 {[%clk 0:01:37]} 15. exf6 {[%clk 0:01:52]}  Nxf6 {[%clk 0:01:35]} 16. Neg5 {[%clk 0:01:42]}  h6 {[%clk 0:01:17]} 17. Qd2 {[%clk 0:01:30]}  hxg5 {[%clk 0:01:01]} 18. Nxg5 {[%clk 0:01:24]}  Ng4 {[%clk 0:00:25]} 19. Bh7+ {[%clk 0:01:19]}  Kh8 {[%clk 0:00:23]} 20. h4 {[%clk 0:01:19]}  Bxg2 {[%clk 0:00:20]} 21. Rfe1 {[%clk 0:01:14]}  Nh3+ {[%clk 0:00:12]} 22. Kxg2 {[%clk 0:01:08]}  Rxf2+ {[%clk 0:00:11]} 23. Qxf2 {[%clk 0:01:07]}  Ngxf2 {[%clk 0:00:07]} 24. Rxe6 {[%clk 0:01:07]}  Qf8 {[%clk 0:00:04]} 25. Bb1 {[%clk 0:01:02]}  Re8 {[%clk 0:00:02]} 26. Rxe8 {[%clk 0:00:58]}  Qxe8 {[%clk 0:00:02]} 27. Nxh3 {[%clk 0:00:58]}  Nxh3 {[%clk 0:00:00]} 28. Rxc7 {[%clk 0:00:51]} 1-0

[Event "December 12 Early 2023"]
[Site "https://www.chess.com"]
[Date "2023.12.12"]
[Round "1"]
[White "Saim, Mohamed Ilias"]
[Black "Jimenez Almeida, Luis David"]
[Result "0-1"]
[Board "222"]
[TimeControl "180+1"]
[WhiteFideId "7900465"]
[BlackFideId "22242244"]
[WhiteElo "2040"]
[BlackElo "2539"]
[WhiteTeam "ALG"]
[BlackTeam "ESP"]
[WhiteClock "0:00:07"]
[BlackClock "0:00:57"]

1. d4 {[%clk 0:02:57]}  g6 {[%clk 0:02:59]} 2. c4 {[%clk 0:02:57]}  Bg7 {[%clk 0:02:59]} 3. Nf3 {[%clk 0:02:57]}  f5 {[%clk 0:02:58]} 4. e3 {[%clk 0:02:56]}  Nf6 {[%clk 0:02:58]} 5. Be2 {[%clk 0:02:56]}  O-O {[%clk 0:02:58]} 6. Nc3 {[%clk 0:02:56]}  d6 {[%clk 0:02:58]} 7. b4 {[%clk 0:02:56]}  Qe8 {[%clk 0:02:50]} 8. a4 {[%clk 0:02:54]}  e5 {[%clk 0:02:50]} 9. Ba3 {[%clk 0:02:30]}  e4 {[%clk 0:02:41]} 10. Nd2 {[%clk 0:02:30]}  Be6 {[%clk 0:02:39]} 11. Qc2 {[%clk 0:02:21]}  Nbd7 {[%clk 0:02:36]} 12. c5 {[%clk 0:02:02]}  d5 {[%clk 0:02:34]} 13. b5 {[%clk 0:02:02]}  c6 {[%clk 0:02:31]} 14. a5 {[%clk 0:02:01]}  a6 {[%clk 0:02:26]} 15. bxc6 {[%clk 0:02:01]}  bxc6 {[%clk 0:02:26]} 16. Qa4 {[%clk 0:01:48]}  Qc8 {[%clk 0:02:20]} 17. Rb1 {[%clk 0:01:44]}  g5 {[%clk 0:02:16]} 18. h4 {[%clk 0:01:42]}  h6 {[%clk 0:02:16]} 19. Rb2 {[%clk 0:01:22]}  f4 {[%clk 0:02:12]} 20. O-O {[%clk 0:00:54]}  gxh4 {[%clk 0:01:56]} 21. exf4 {[%clk 0:00:51]}  h3 {[%clk 0:01:33]} 22. Rfb1 {[%clk 0:00:35]}  hxg2 {[%clk 0:01:17]} 23. Rb6 {[%clk 0:00:28]}  Nxb6 {[%clk 0:01:12]} 24. Rxb6 {[%clk 0:00:29]}  Bd7 {[%clk 0:01:11]} 25. Qb3 {[%clk 0:00:20]}  Ne8 {[%clk 0:01:09]} 26. Qa4 {[%clk 0:00:18]}  Rxf4 {[%clk 0:01:07]} 27. Qd1 {[%clk 0:00:15]}  Bxd4 {[%clk 0:01:04]} 28. Rb3 {[%clk 0:00:13]}  Bh3 {[%clk 0:00:58]} 29. Na4 {[%clk 0:00:07]}  Bxf2+ {[%clk 0:00:57]} 0-1

[Event "December 12 Early 2023"]
[Site "https://www.chess.com"]
[Date "2023.12.12"]
[Round "1"]
[White "Kazmin, Semen"]
[Black "Sailer, Mike"]
[Result "1-0"]
[Board "223"]
[TimeControl "180+1"]
[WhiteFideId "34171409"]
[BlackFideId "2012901"]
[WhiteElo "2538"]
[BlackElo "2040"]
[WhiteTeam "RUS"]
[BlackTeam "USA"]
[WhiteClock "0:01:49"]
[BlackClock "0:00:00"]

1. e4 {[%clk 0:03:00]}  d5 {[%clk 0:02:59]} 2. exd5 {[%clk 0:03:00]}  Qxd5 {[%clk 0:02:59]} 3. Nc3 {[%clk 0:03:01]}  Qd6 {[%clk 0:02:59]} 4. d4 {[%clk 0:03:01]}  c6 {[%clk 0:02:59]} 5. g3 {[%clk 0:02:55]}  Nf6 {[%clk 0:02:55]} 6. Bg2 {[%clk 0:02:55]}  Bf5 {[%clk 0:02:54]} 7. Nge2 {[%clk 0:02:54]}  e6 {[%clk 0:02:52]} 8. O-O {[%clk 0:02:54]}  Qc7 {[%clk 0:02:52]} 9. Re1 {[%clk 0:02:50]}  Bd6 {[%clk 0:02:51]} 10. d5 {[%clk 0:02:43]}  Nxd5 {[%clk 0:02:23]} 11. Bxd5 {[%clk 0:02:40]}  cxd5 {[%clk 0:02:22]} 12. Nd4 {[%clk 0:02:40]}  Bg6 {[%clk 0:02:10]} 13. Nxd5 {[%clk 0:02:39]}  Qd8 {[%clk 0:01:53]} 14. Nb5 {[%clk 0:02:36]}  O-O {[%clk 0:01:35]} 15. Nxd6 {[%clk 0:02:35]}  exd5 {[%clk 0:01:33]} 16. Qxd5 {[%clk 0:02:36]}  Bxc2 {[%clk 0:01:24]} 17. Bg5 {[%clk 0:02:34]}  Qb6 {[%clk 0:01:16]} 18. Nxf7 {[%clk 0:02:28]}  Bg6 {[%clk 0:01:05]} 19. Ne5+ {[%clk 0:01:59]}  Kh8 {[%clk 0:01:03]} 20. Be3 {[%clk 0:01:59]}  Qd8 {[%clk 0:00:30]} 21. Qxb7 {[%clk 0:01:53]}  Re8 {[%clk 0:00:00]} 22. Nxg6+ {[%clk 0:01:49]} 1-0

[Event "December 12 Early 2023"]
[Site "https://www.chess.com"]
[Date "2023.12.12"]
[Round "1"]
[White "Colbow, Collin"]
[Black "Bongo Akanga Ndjila, Barthelemy"]
[Result "1-0"]
[Board "225"]
[TimeControl "180+1"]
[WhiteFideId "16201132"]
[BlackFideId "10609431"]
[WhiteElo "2536"]
[BlackElo "2017"]
[WhiteTeam "GER"]
[BlackTeam "GAB"]
[WhiteClock "0:00:19"]
[BlackClock "0:00:12"]

1. b3 {[%clk 0:02:52]}  Nf6 {[%clk 0:02:53]} 2. Bb2 {[%clk 0:02:53]}  d5 {[%clk 0:02:53]} 3. Nf3 {[%clk 0:02:52]}  b5 {[%clk 0:02:52]} 4. e3 {[%clk 0:02:51]}  b4 {[%clk 0:02:51]} 5. a3 {[%clk 0:02:47]}  c5 {[%clk 0:02:48]} 6. axb4 {[%clk 0:02:36]}  cxb4 {[%clk 0:02:47]} 7. Ne5 {[%clk 0:02:25]}  e6 {[%clk 0:02:43]} 8. Bb5+ {[%clk 0:02:25]}  Nfd7 {[%clk 0:02:42]} 9. Qf3 {[%clk 0:02:21]}  Qf6 {[%clk 0:02:34]} 10. Nxd7 {[%clk 0:02:15]}  Qxf3 {[%clk 0:02:19]} 11. Nb6+ {[%clk 0:01:08]}  Bd7 {[%clk 0:01:46]} 12. gxf3 {[%clk 0:01:04]}  Bxb5 {[%clk 0:01:39]} 13. Nxa8 {[%clk 0:01:05]}  a6 {[%clk 0:01:29]} 14. Nc7+ {[%clk 0:01:04]}  Kd7 {[%clk 0:01:28]} 15. Nxb5 {[%clk 0:01:05]}  axb5 {[%clk 0:01:27]} 16. Ra7+ {[%clk 0:01:05]}  Ke8 {[%clk 0:01:23]} 17. Rg1 {[%clk 0:00:50]}  Nd7 {[%clk 0:01:17]} 18. d3 {[%clk 0:00:27]}  Ke7 {[%clk 0:01:15]} 19. Bxg7 {[%clk 0:00:24]}  Bxg7 {[%clk 0:01:09]} 20. Rxg7 {[%clk 0:00:25]}  Kf6 {[%clk 0:00:52]} 21. Rg4 {[%clk 0:00:19]}  Ne5 {[%clk 0:00:51]} 22. Rf4+ {[%clk 0:00:20]}  Kg6 {[%clk 0:00:51]} 23. d4 {[%clk 0:00:21]}  Nc6 {[%clk 0:00:47]} 24. Raxf7 {[%clk 0:00:20]}  Ra8 {[%clk 0:00:39]} 25. Nd2 {[%clk 0:00:18]}  Ra1+ {[%clk 0:00:35]} 26. Ke2 {[%clk 0:00:18]}  Nd8 {[%clk 0:00:34]} 27. R4f6+ {[%clk 0:00:17]}  Kg5 {[%clk 0:00:33]} 28. f4+ {[%clk 0:00:17]}  Kg4 {[%clk 0:00:14]} 29. Rg7+ {[%clk 0:00:17]}  Kh5 {[%clk 0:00:13]} 30. Rxh7+ {[%clk 0:00:17]}  Kg4 {[%clk 0:00:13]} 31. Rg7+ {[%clk 0:00:18]}  Kh5 {[%clk 0:00:13]} 32. Rg5+ {[%clk 0:00:18]}  Kh4 {[%clk 0:00:12]} 33. Rh6# {[%clk 0:00:19]} 1-0